[Event "*** SCC Grand Prix: Titled Tuesday Blitz"]
[Site "Chess.com"]
[Date "2020.07.21"]
[Round "2"]
[White "Arjun2002"]
[Black "BikingBrian"]
[Result "1-0"]
[WhiteElo "2615"]
[BlackElo "2213"]
[TimeControl "180+1"]
[EndTime "10:13:28 PDT"]
[Termination "Arjun2002 won by resignation"]

1. e4 {[%clk 0:03:00.9]} 1... c5 {[%clk 0:02:59.6]} 2. Nf3 {[%clk 0:03:00.1]}
2... g6 {[%clk 0:03:00]} 3. d4 {[%clk 0:02:56.8]} 3... cxd4 {[%clk 0:03:00.9]}
4. Nxd4 {[%clk 0:02:57.3]} 4... Nc6 {[%clk 0:03:00.9]} 5. c4 {[%clk 0:02:57]}
5... Nf6 {[%clk 0:03:00.6]} 6. Nc3 {[%clk 0:02:55.8]} 6... d6 {[%clk 0:03:00.9]}
7. f3 {[%clk 0:02:51]} 7... Qb6 {[%clk 0:02:57.8]} 8. Be3 {[%clk 0:02:29.2]}
8... Bg7 {[%clk 0:02:30.1]} 9. Nf5 {[%clk 0:02:06.8]} 9... Qxb2 {[%clk
0:02:28.9]} 10. Nxg7+ {[%clk 0:02:06.9]} 10... Kf8 {[%clk 0:02:24.3]} 11. Na4
{[%clk 0:02:06.7]} 11... Qxa1 {[%clk 0:01:46.7]} 12. Qxa1 {[%clk 0:02:04.3]}
12... Kxg7 {[%clk 0:01:47.1]} 13. Be2 {[%clk 0:02:01.9]} 13... Be6 {[%clk
0:01:47.3]} 14. O-O {[%clk 0:02:00.7]} 14... Ne5 {[%clk 0:01:47.6]} 15. Rc1
{[%clk 0:01:57.6]} 15... Rhc8 {[%clk 0:01:47.8]} 16. c5 {[%clk 0:01:57.8]} 1-0

[Event "*** SCC Grand Prix: Titled Tuesday Blitz"]
[Site "Chess.com"]
[Date "2020.07.21"]
[Round "2"]
[White "romulocardoso"]
[Black "GracefulYear"]
[Result "0-1"]
[WhiteElo "2138"]
[BlackElo "2409"]
[TimeControl "180+1"]
[EndTime "10:13:53 PDT"]
[Termination "GracefulYear won by resignation"]

1. e4 {[%clk 0:03:00.9]} 1... c6 {[%clk 0:02:59.9]} 2. d4 {[%clk 0:03:00.4]}
2... d5 {[%clk 0:03:00.8]} 3. exd5 {[%clk 0:03:00.7]} 3... cxd5 {[%clk
0:02:59.8]} 4. c4 {[%clk 0:03:01.6]} 4... Nf6 {[%clk 0:02:58.6]} 5. Nc3 {[%clk
0:03:02.5]} 5... Nc6 {[%clk 0:02:57.3]} 6. Nf3 {[%clk 0:03:02.6]} 6... Bg4
{[%clk 0:02:57.7]} 7. Be3 {[%clk 0:03:00.5]} 7... e6 {[%clk 0:02:57.1]} 8. h3
{[%clk 0:02:58.1]} 8... Bh5 {[%clk 0:02:56.9]} 9. Bd3 {[%clk 0:02:57.8]} 9...
Bg6 {[%clk 0:02:55.8]} 10. O-O {[%clk 0:02:57.3]} 10... Be7 {[%clk 0:02:55.7]}
11. Re1 {[%clk 0:02:56.8]} 11... O-O {[%clk 0:02:56]} 12. Ne5 {[%clk 0:02:54.1]}
12... Bxd3 {[%clk 0:02:55.2]} 13. Qxd3 {[%clk 0:02:53.5]} 13... dxc4 {[%clk
0:02:50.5]} 14. Nxc6 {[%clk 0:02:53.4]} 14... cxd3 {[%clk 0:02:47]} 15. Nxd8
{[%clk 0:02:54]} 15... Raxd8 {[%clk 0:02:47.3]} 16. Rad1 {[%clk 0:02:54.5]}
16... Bb4 {[%clk 0:02:45.1]} 17. Rxd3 {[%clk 0:02:54.6]} 17... Nd5 {[%clk
0:02:45.1]} 18. Bd2 {[%clk 0:02:53.6]} 18... Nxc3 {[%clk 0:02:44.9]} 19. bxc3
{[%clk 0:02:54.5]} 19... Ba5 {[%clk 0:02:44.6]} 20. c4 {[%clk 0:02:52.6]} 20...
Bxd2 {[%clk 0:02:43.9]} 21. Rxd2 {[%clk 0:02:53.5]} 21... Rd7 {[%clk 0:02:44.3]}
22. Red1 {[%clk 0:02:50.9]} 22... Rfd8 {[%clk 0:02:44.3]} 23. Kf1 {[%clk
0:02:51.4]} 23... Kf8 {[%clk 0:02:44]} 24. Ke2 {[%clk 0:02:51.5]} 24... Ke7
{[%clk 0:02:44.9]} 25. Ke3 {[%clk 0:02:51.8]} 25... Kd6 {[%clk 0:02:44.6]} 26.
Ke4 {[%clk 0:02:52.2]} 26... Kc6 {[%clk 0:02:45.5]} 27. d5+ {[%clk 0:02:51.1]}
27... exd5+ {[%clk 0:02:45.3]} 28. Rxd5 {[%clk 0:02:50.6]} 28... Rxd5 {[%clk
0:02:42.7]} 29. cxd5+ {[%clk 0:02:50.5]} 29... Kc5 {[%clk 0:02:42.2]} 30. Rc1+
{[%clk 0:02:50.2]} 30... Kd6 {[%clk 0:02:42.6]} 31. Rb1 {[%clk 0:02:45.2]} 31...
b6 {[%clk 0:02:42.1]} 32. Rb2 {[%clk 0:02:41.3]} 32... Rc8 {[%clk 0:02:40.2]}
33. Kd4 {[%clk 0:02:40.6]} 33... Rc5 {[%clk 0:02:40.1]} 34. Re2 {[%clk
0:02:35.4]} 34... Rxd5+ {[%clk 0:02:39.4]} 35. Kc4 {[%clk 0:02:36.3]} 35... Re5
{[%clk 0:02:39.2]} 36. Rxe5 {[%clk 0:02:34.6]} 36... Kxe5 {[%clk 0:02:40.1]} 37.
Kb5 {[%clk 0:02:35.5]} 37... Kd5 {[%clk 0:02:18]} 38. Ka6 {[%clk 0:02:35.4]}
38... Kc5 {[%clk 0:02:18.5]} 39. Kxa7 {[%clk 0:02:34.9]} 39... Kb5 {[%clk
0:02:19.4]} 40. a4+ {[%clk 0:02:34.4]} 40... Ka5 {[%clk 0:02:19.6]} 41. Kb7
{[%clk 0:02:34]} 41... f5 {[%clk 0:02:18.4]} 42. Kc6 {[%clk 0:02:33.7]} 42... g5
{[%clk 0:02:16]} 43. g4 {[%clk 0:02:30.2]} 43... f4 {[%clk 0:02:14.7]} 44. f3
{[%clk 0:02:22.6]} 44... h6 {[%clk 0:02:14.6]} 45. Kb7 {[%clk 0:02:23]} 45...
Kxa4 {[%clk 0:02:11.3]} 46. Kxb6 {[%clk 0:02:23.9]} 46... Kb4 {[%clk 0:02:11.9]}
47. Kc6 {[%clk 0:02:24.8]} 47... Kc4 {[%clk 0:02:12.5]} 48. Kd6 {[%clk
0:02:24.9]} 48... Kd4 {[%clk 0:02:13]} 49. Ke6 {[%clk 0:02:25.4]} 49... Ke3
{[%clk 0:02:13.7]} 50. Kf6 {[%clk 0:02:26.2]} 50... Kxf3 {[%clk 0:02:14.6]} 51.
Kg6 {[%clk 0:02:26.9]} 51... Kg3 {[%clk 0:02:15.1]} 52. Kxh6 {[%clk 0:02:27.5]}
52... Kh4 {[%clk 0:02:14.6]} 0-1

[Event "*** SCC Grand Prix: Titled Tuesday Blitz"]
[Site "Chess.com"]
[Date "2020.07.21"]
[Round "2"]
[White "Zhuu96"]
[Black "TudorAnton"]
[Result "1-0"]
[WhiteElo "2796"]
[BlackElo "2517"]
[TimeControl "180+1"]
[EndTime "10:13:55 PDT"]
[Termination "Zhuu96 won by resignation"]

1. d4 {[%clk 0:03:00.6]} 1... Nf6 {[%clk 0:02:40.5]} 2. c4 {[%clk 0:03:00.1]}
2... e6 {[%clk 0:02:38.1]} 3. Nf3 {[%clk 0:03:00.3]} 3... Bb4+ {[%clk
0:02:30.7]} 4. Nbd2 {[%clk 0:02:59.1]} 4... O-O {[%clk 0:02:29.7]} 5. e3 {[%clk
0:02:59.4]} 5... b6 {[%clk 0:02:29.6]} 6. Bd3 {[%clk 0:02:59.5]} 6... Bb7 {[%clk
0:02:30.1]} 7. O-O {[%clk 0:02:59.8]} 7... Re8 {[%clk 0:02:26.9]} 8. e4 {[%clk
0:02:56.4]} 8... Bxd2 {[%clk 0:02:25.1]} 9. Nxd2 {[%clk 0:02:56]} 9... Nc6
{[%clk 0:02:24.2]} 10. e5 {[%clk 0:02:54.9]} 10... Nxd4 {[%clk 0:02:19.7]} 11.
exf6 {[%clk 0:02:54.9]} 11... Qxf6 {[%clk 0:02:20.3]} 12. Ne4 {[%clk 0:02:51.3]}
12... Qg6 {[%clk 0:02:20]} 13. Ng3 {[%clk 0:02:35.1]} 13... f5 {[%clk
0:02:19.5]} 14. Be3 {[%clk 0:02:34.5]} 14... c5 {[%clk 0:02:18.7]} 15. f4 {[%clk
0:02:30.9]} 15... d6 {[%clk 0:02:10.3]} 16. Rf2 {[%clk 0:02:29.4]} 16... Rf8
{[%clk 0:02:08.7]} 17. Bxd4 {[%clk 0:02:19.6]} 17... cxd4 {[%clk 0:02:08.3]} 18.
Bc2 {[%clk 0:02:19.2]} 18... Qf6 {[%clk 0:02:07.6]} 19. Ne2 {[%clk 0:01:55.2]}
19... Rac8 {[%clk 0:02:02.9]} 20. Qxd4 {[%clk 0:01:51.7]} 20... e5 {[%clk
0:01:59.1]} 21. Qc3 {[%clk 0:01:42.5]} 1-0

[Event "*** SCC Grand Prix: Titled Tuesday Blitz"]
[Site "Chess.com"]
[Date "2020.07.21"]
[Round "2"]
[White "enkhtuul"]
[Black "Funo09"]
[Result "0-1"]
[WhiteElo "2387"]
[BlackElo "2762"]
[TimeControl "180+1"]
[EndTime "10:14:21 PDT"]
[Termination "Funo09 won by resignation"]

1. d4 {[%clk 0:03:00.7]} 1... Nf6 {[%clk 0:02:59.9]} 2. Nf3 {[%clk 0:02:59.8]}
2... g6 {[%clk 0:02:59.8]} 3. Bf4 {[%clk 0:02:58.9]} 3... Bg7 {[%clk 0:03:00.7]}
4. e3 {[%clk 0:02:58.9]} 4... O-O {[%clk 0:03:01.1]} 5. Be2 {[%clk 0:02:56.4]}
5... d6 {[%clk 0:03:02]} 6. h3 {[%clk 0:02:56.1]} 6... c5 {[%clk 0:03:02]} 7. c3
{[%clk 0:02:56.1]} 7... Be6 {[%clk 0:03:00.9]} 8. O-O {[%clk 0:02:55.8]} 8...
Nc6 {[%clk 0:03:01.1]} 9. Nbd2 {[%clk 0:02:55.7]} 9... Qb6 {[%clk 0:03:01.5]}
10. Bc4 {[%clk 0:02:28.1]} 10... d5 {[%clk 0:02:56.4]} 11. dxc5 {[%clk
0:02:23.3]} 11... Qxb2 {[%clk 0:02:55.1]} 12. Rb1 {[%clk 0:01:59.3]} 12... Qxc3
{[%clk 0:02:54.2]} 13. Rb3 {[%clk 0:01:58.9]} 13... Qa5 {[%clk 0:02:51.9]} 14.
Rb5 {[%clk 0:01:58.5]} 14... Qd8 {[%clk 0:02:50.2]} 15. Bd3 {[%clk 0:01:56.6]}
15... Bc8 {[%clk 0:02:29.8]} 16. Qa4 {[%clk 0:01:45.6]} 16... Re8 {[%clk
0:02:26.9]} 17. Ne5 {[%clk 0:01:39]} 17... Nxe5 {[%clk 0:02:26.1]} 18. Bxe5
{[%clk 0:01:38.7]} 18... Bd7 {[%clk 0:02:26.5]} 19. Rfb1 {[%clk 0:01:35.2]}
19... a6 {[%clk 0:02:26.1]} 20. Qa5 {[%clk 0:01:22.2]} 20... axb5 {[%clk
0:02:24]} 21. Qxd8 {[%clk 0:01:21.8]} 21... Rexd8 {[%clk 0:02:24.9]} 22. Bxb5
{[%clk 0:01:21.4]} 22... Rxa2 {[%clk 0:02:19.6]} 23. Bxd7 {[%clk 0:01:20.6]}
23... Rxd7 {[%clk 0:02:20.5]} 24. Nf3 {[%clk 0:01:19.8]} 24... Ne4 {[%clk
0:02:18.3]} 25. Bxg7 {[%clk 0:01:18.8]} 25... Kxg7 {[%clk 0:02:19.2]} 26. Ne5
{[%clk 0:01:18.8]} 26... Rc7 {[%clk 0:02:19.1]} 27. Nd3 {[%clk 0:01:18.2]} 27...
Nxc5 {[%clk 0:02:18.3]} 28. Nxc5 {[%clk 0:01:18]} 28... Rxc5 {[%clk 0:02:17.9]}
29. Rxb7 {[%clk 0:01:18.9]} 29... Rc1+ {[%clk 0:02:17.3]} 30. Kh2 {[%clk
0:01:19.2]} 30... Rxf2 {[%clk 0:02:18.2]} 31. Rxe7 {[%clk 0:01:18.9]} 31... Rcc2
{[%clk 0:02:19.1]} 0-1

[Event "*** SCC Grand Prix: Titled Tuesday Blitz"]
[Site "Chess.com"]
[Date "2020.07.21"]
[Round "2"]
[White "aliba25"]
[Black "tk22h"]
[Result "1-0"]
[WhiteElo "2635"]
[BlackElo "2307"]
[TimeControl "180+1"]
[EndTime "10:14:31 PDT"]
[Termination "aliba25 won by resignation"]

1. d4 {[%clk 0:03:00.9]} 1... Nf6 {[%clk 0:02:59]} 2. c4 {[%clk 0:03:00.9]} 2...
g6 {[%clk 0:02:58]} 3. Nc3 {[%clk 0:03:00.8]} 3... d5 {[%clk 0:02:58]} 4. Bg5
{[%clk 0:03:00]} 4... Ne4 {[%clk 0:02:56]} 5. Bh4 {[%clk 0:02:59.9]} 5... g5
{[%clk 0:02:56.3]} 6. Nxe4 {[%clk 0:02:54.9]} 6... gxh4 {[%clk 0:02:51.5]} 7.
cxd5 {[%clk 0:02:54.3]} 7... Qxd5 {[%clk 0:02:50.9]} 8. Nc3 {[%clk 0:02:54.4]}
8... Qa5 {[%clk 0:02:49.9]} 9. h3 {[%clk 0:02:52.5]} 9... Bg7 {[%clk 0:02:49.6]}
10. Nf3 {[%clk 0:02:52.5]} 10... Nc6 {[%clk 0:02:46]} 11. e3 {[%clk 0:02:52.4]}
11... Bf6 {[%clk 0:02:38]} 12. Qd2 {[%clk 0:02:46.3]} 12... Bf5 {[%clk
0:02:33.2]} 13. e4 {[%clk 0:02:38.2]} 13... Bg6 {[%clk 0:02:31.8]} 14. Bb5
{[%clk 0:02:29.6]} 14... Rd8 {[%clk 0:02:22.8]} 15. O-O {[%clk 0:02:02.7]} 15...
O-O {[%clk 0:02:21.6]} 16. Bxc6 {[%clk 0:02:00.6]} 16... bxc6 {[%clk 0:02:20.7]}
17. Qe3 {[%clk 0:01:59.1]} 17... Qb4 {[%clk 0:02:16.7]} 18. e5 {[%clk
0:01:57.9]} 18... Bg7 {[%clk 0:02:12.8]} 19. b3 {[%clk 0:01:52.2]} 19... c5
{[%clk 0:02:12.1]} 20. Rad1 {[%clk 0:01:32.2]} 20... cxd4 {[%clk 0:02:07.7]} 21.
Nxd4 {[%clk 0:01:30.1]} 21... Rd7 {[%clk 0:01:38.4]} 22. Nc6 {[%clk 0:01:23.5]}
1-0

[Event "*** SCC Grand Prix: Titled Tuesday Blitz"]
[Site "Chess.com"]
[Date "2020.07.21"]
[Round "2"]
[White "Danfii"]
[Black "maiconramazzotte99"]
[Result "1-0"]
[WhiteElo "2344"]
[BlackElo "1745"]
[TimeControl "180+1"]
[EndTime "10:14:35 PDT"]
[Termination "Danfii won by resignation"]

1. e4 {[%clk 0:03:00.9]} 1... c5 {[%clk 0:02:57.3]} 2. Nf3 {[%clk 0:03:00.5]}
2... d6 {[%clk 0:02:54.6]} 3. d4 {[%clk 0:03:00.2]} 3... cxd4 {[%clk 0:02:53.6]}
4. Nxd4 {[%clk 0:03:01.1]} 4... Nf6 {[%clk 0:02:53.2]} 5. Nc3 {[%clk 0:03:00.9]}
5... a6 {[%clk 0:02:51.8]} 6. Be3 {[%clk 0:03:00.6]} 6... e6 {[%clk 0:02:50.9]}
7. g4 {[%clk 0:03:00.1]} 7... Be7 {[%clk 0:02:50.6]} 8. g5 {[%clk 0:02:59.9]}
8... Nfd7 {[%clk 0:02:47.6]} 9. h4 {[%clk 0:03:00.3]} 9... Nc6 {[%clk
0:02:44.7]} 10. Qd2 {[%clk 0:02:55.8]} 10... Nde5 {[%clk 0:02:27.1]} 11. Be2
{[%clk 0:02:53.9]} 11... Bd7 {[%clk 0:02:20]} 12. f4 {[%clk 0:02:52.1]} 12...
Nxd4 {[%clk 0:02:14.5]} 13. Bxd4 {[%clk 0:02:47.6]} 13... Nc6 {[%clk 0:02:15.4]}
14. Bxg7 {[%clk 0:02:39.4]} 14... Rg8 {[%clk 0:02:14.8]} 15. Bd4 {[%clk
0:02:39.9]} 15... e5 {[%clk 0:02:10]} 16. Be3 {[%clk 0:02:36.2]} 16... b5 {[%clk
0:02:07.9]} 17. Nd5 {[%clk 0:02:34.1]} 17... Be6 {[%clk 0:01:51.9]} 18. Bb6
{[%clk 0:02:18.7]} 18... Qd7 {[%clk 0:01:18.8]} 19. Nc7+ {[%clk 0:02:13.4]}
19... Kf8 {[%clk 0:01:18.1]} 20. Nxa8 {[%clk 0:02:08.9]} 20... Qb7 {[%clk
0:01:16.7]} 21. f5 {[%clk 0:02:03.3]} 21... Bd7 {[%clk 0:01:12.5]} 22. f6 {[%clk
0:01:58.7]} 22... Bd8 {[%clk 0:01:07.4]} 23. Bxd8 {[%clk 0:01:55.5]} 23... Nxd8
{[%clk 0:00:57.9]} 24. Qxd6+ {[%clk 0:01:54.5]} 1-0

[Event "*** SCC Grand Prix: Titled Tuesday Blitz"]
[Site "Chess.com"]
[Date "2020.07.21"]
[Round "2"]
[White "Carnivoras"]
[Black "AGW2016"]
[Result "1-0"]
[WhiteElo "2619"]
[BlackElo "2244"]
[TimeControl "180+1"]
[EndTime "10:14:39 PDT"]
[Termination "Carnivoras won by resignation"]

1. d4 {[%clk 0:03:00.9]} 1... Nf6 {[%clk 0:02:58.5]} 2. c4 {[%clk 0:03:01.5]}
2... g6 {[%clk 0:02:59.1]} 3. Nc3 {[%clk 0:03:02.1]} 3... Bg7 {[%clk 0:02:59.9]}
4. e4 {[%clk 0:03:02.8]} 4... d6 {[%clk 0:03:00.5]} 5. Nf3 {[%clk 0:03:03.4]}
5... O-O {[%clk 0:03:01.2]} 6. Be2 {[%clk 0:03:04.1]} 6... e5 {[%clk 0:03:01.9]}
7. O-O {[%clk 0:03:04.7]} 7... Nc6 {[%clk 0:03:02.5]} 8. d5 {[%clk 0:03:05.2]}
8... Ne7 {[%clk 0:03:03.2]} 9. b4 {[%clk 0:03:05.9]} 9... Nh5 {[%clk 0:03:02.5]}
10. g3 {[%clk 0:03:05.3]} 10... f5 {[%clk 0:03:01.6]} 11. Ng5 {[%clk 0:03:05.6]}
11... Nf6 {[%clk 0:03:01.3]} 12. f3 {[%clk 0:03:05.6]} 12... c6 {[%clk
0:03:01.2]} 13. Be3 {[%clk 0:03:01.9]} 13... h6 {[%clk 0:02:30.1]} 14. Ne6
{[%clk 0:03:01.8]} 14... Bxe6 {[%clk 0:02:30.8]} 15. dxe6 {[%clk 0:03:02.7]}
15... Ne8 {[%clk 0:02:20.9]} 16. Qb3 {[%clk 0:03:02.1]} 16... Nc7 {[%clk
0:02:18.2]} 17. Rad1 {[%clk 0:02:45.9]} 17... Nxe6 {[%clk 0:02:15.3]} 18. c5
{[%clk 0:02:45.9]} 18... d5 {[%clk 0:02:15.7]} 19. exd5 {[%clk 0:02:46.4]} 19...
cxd5 {[%clk 0:02:14.6]} 20. Nxd5 {[%clk 0:02:46.6]} 20... Nxd5 {[%clk
0:02:15.3]} 21. Rxd5 {[%clk 0:02:45.3]} 21... Qe7 {[%clk 0:02:02.3]} 22. Rd6
{[%clk 0:02:43.1]} 22... Rae8 {[%clk 0:01:59]} 23. Bc4 {[%clk 0:02:43.1]} 23...
Rf6 {[%clk 0:01:58.1]} 24. Rfd1 {[%clk 0:02:42]} 24... Kh7 {[%clk 0:01:54.3]}
25. Rd7 {[%clk 0:02:41.2]} 25... Qf8 {[%clk 0:01:54.6]} 26. Rxb7 {[%clk
0:02:41.2]} 26... f4 {[%clk 0:01:54.4]} 27. Bf2 {[%clk 0:02:32.6]} 27... fxg3
{[%clk 0:01:53.4]} 28. Bxg3 {[%clk 0:02:31.3]} 28... Rxf3 {[%clk 0:01:53.2]} 29.
Bxe6 {[%clk 0:02:26.3]} 29... Rxb3 {[%clk 0:01:51.9]} 30. Bxb3 {[%clk
0:02:25.8]} 30... Re7 {[%clk 0:01:37.3]} 31. c6 {[%clk 0:02:24.1]} 31... Qf3
{[%clk 0:01:31.3]} 32. Rxe7 {[%clk 0:02:17.7]} 32... Qxc6 {[%clk 0:01:24.9]} 33.
Rdd7 {[%clk 0:02:17.5]} 33... Qc1+ {[%clk 0:01:24]} 34. Kg2 {[%clk 0:02:17.5]}
34... Qb2+ {[%clk 0:01:23.7]} 35. Kh3 {[%clk 0:02:18]} 35... h5 {[%clk
0:01:22.6]} 36. Rxg7+ {[%clk 0:02:17.7]} 36... Kh6 {[%clk 0:01:23.2]} 37. Rh7+
{[%clk 0:02:15.5]} 37... Kg5 {[%clk 0:01:23.2]} 38. Bh4+ {[%clk 0:02:15.3]}
38... Kf5 {[%clk 0:01:23.1]} 39. Rhf7+ {[%clk 0:02:15.2]} 39... Ke4 {[%clk
0:01:23.7]} 40. Bd5+ {[%clk 0:02:15.5]} 40... Ke3 {[%clk 0:01:22]} 41. Rf3+
{[%clk 0:02:15]} 41... Kd4 {[%clk 0:01:19.8]} 42. Bf2+ {[%clk 0:02:14.8]} 42...
Qxf2 {[%clk 0:01:10]} 43. Rxf2 {[%clk 0:02:15.7]} 1-0

[Event "*** SCC Grand Prix: Titled Tuesday Blitz"]
[Site "Chess.com"]
[Date "2020.07.21"]
[Round "2"]
[White "Chopper1905"]
[Black "Zufi1811"]
[Result "0-1"]
[WhiteElo "2888"]
[BlackElo "2472"]
[TimeControl "180+1"]
[EndTime "10:14:44 PDT"]
[Termination "Zufi1811 won by resignation"]

1. f4 {[%clk 0:03:00.9]} 1... d5 {[%clk 0:02:56.5]} 2. Nf3 {[%clk 0:03:01]} 2...
Nh6 {[%clk 0:02:53.8]} 3. b3 {[%clk 0:02:57.3]} 3... c5 {[%clk 0:02:50.1]} 4.
Bb2 {[%clk 0:02:57.4]} 4... Nc6 {[%clk 0:02:50.3]} 5. e3 {[%clk 0:02:58]} 5...
Nf5 {[%clk 0:02:49.1]} 6. Bb5 {[%clk 0:02:57.4]} 6... Bd7 {[%clk 0:02:48.2]} 7.
O-O {[%clk 0:02:57]} 7... f6 {[%clk 0:02:45.4]} 8. Nc3 {[%clk 0:02:54]} 8... e6
{[%clk 0:02:42.2]} 9. e4 {[%clk 0:02:46.2]} 9... dxe4 {[%clk 0:02:36.7]} 10.
Nxe4 {[%clk 0:02:47.1]} 10... a6 {[%clk 0:02:33]} 11. Bd3 {[%clk 0:02:34.7]}
11... Be7 {[%clk 0:02:31.1]} 12. Re1 {[%clk 0:02:15.1]} 12... Qc7 {[%clk
0:02:25.5]} 13. Nxf6+ {[%clk 0:01:37.1]} 13... gxf6 {[%clk 0:02:16.3]} 14. Bxf5
{[%clk 0:01:37.4]} 14... exf5 {[%clk 0:02:16.4]} 15. Bxf6 {[%clk 0:01:37.7]}
15... Rf8 {[%clk 0:02:16.3]} 16. Bxe7 {[%clk 0:01:35.6]} 16... Nxe7 {[%clk
0:02:17.2]} 17. Ng5 {[%clk 0:01:33.9]} 17... Qd6 {[%clk 0:02:11.2]} 18. Nxh7
{[%clk 0:01:29.9]} 18... Rg8 {[%clk 0:02:09.9]} 19. Qh5+ {[%clk 0:01:21]} 19...
Kd8 {[%clk 0:02:09.7]} 20. Ng5 {[%clk 0:01:10.8]} 20... Qxf4 {[%clk 0:01:55.1]}
21. Nf7+ {[%clk 0:01:06.6]} 21... Kc7 {[%clk 0:01:52.8]} 22. Re2 {[%clk
0:00:45]} 22... Qd4+ {[%clk 0:01:51.4]} 0-1

[Event "*** SCC Grand Prix: Titled Tuesday Blitz"]
[Site "Chess.com"]
[Date "2020.07.21"]
[Round "2"]
[White "exoticprincess"]
[Black "dcremisi"]
[Result "1-0"]
[WhiteElo "2837"]
[BlackElo "2439"]
[TimeControl "180+1"]
[EndTime "10:14:44 PDT"]
[Termination "exoticprincess won by resignation"]

1. e4 {[%clk 0:03:00.9]} 1... e6 {[%clk 0:02:54.9]} 2. d4 {[%clk 0:03:00.3]}
2... d5 {[%clk 0:02:54.9]} 3. Nc3 {[%clk 0:03:00.8]} 3... dxe4 {[%clk
0:02:54.6]} 4. Nxe4 {[%clk 0:03:00.6]} 4... Bd7 {[%clk 0:02:55.3]} 5. c4 {[%clk
0:02:58.7]} 5... Bc6 {[%clk 0:02:53.8]} 6. Nc3 {[%clk 0:02:59]} 6... Nf6 {[%clk
0:02:54.2]} 7. Nf3 {[%clk 0:02:58.6]} 7... Bb4 {[%clk 0:02:39.9]} 8. Be3 {[%clk
0:02:58.3]} 8... O-O {[%clk 0:02:39.5]} 9. Bd3 {[%clk 0:02:58.3]} 9... Ne4
{[%clk 0:02:37.4]} 10. O-O {[%clk 0:02:57.2]} 10... Nxc3 {[%clk 0:02:35.7]} 11.
bxc3 {[%clk 0:02:56.9]} 11... Bd6 {[%clk 0:02:19]} 12. c5 {[%clk 0:02:51.7]}
12... Be7 {[%clk 0:02:18.9]} 13. Ne5 {[%clk 0:02:51.8]} 13... Bf6 {[%clk
0:02:16.7]} 14. Nxc6 {[%clk 0:02:51.5]} 14... Nxc6 {[%clk 0:02:16.5]} 15. Rb1
{[%clk 0:02:49]} 15... Rb8 {[%clk 0:02:16.3]} 16. Be4 {[%clk 0:02:40.3]} 16...
Qd7 {[%clk 0:02:08]} 17. g3 {[%clk 0:02:37.3]} 17... Rfd8 {[%clk 0:02:07.7]} 18.
Kg2 {[%clk 0:02:36.3]} 18... Na5 {[%clk 0:01:56.2]} 19. h4 {[%clk 0:02:29.9]}
19... b6 {[%clk 0:01:55.2]} 20. Qh5 {[%clk 0:02:24.2]} 20... g6 {[%clk
0:01:54.4]} 21. Qf3 {[%clk 0:02:24.3]} 21... Bg7 {[%clk 0:01:50]} 22. c6 {[%clk
0:02:24.6]} 22... Qe7 {[%clk 0:01:47.3]} 23. Bg5 {[%clk 0:02:24.4]} 23... f6
{[%clk 0:01:46.9]} 24. Bf4 {[%clk 0:02:22.8]} 24... Nc4 {[%clk 0:01:42.9]} 25.
Rfe1 {[%clk 0:02:22.6]} 25... Nd6 {[%clk 0:01:42.8]} 26. Bc2 {[%clk 0:02:18.6]}
26... Re8 {[%clk 0:01:38.7]} 27. Bb3 {[%clk 0:02:18.5]} 27... Qf7 {[%clk
0:01:38.1]} 28. Re2 {[%clk 0:02:06.7]} 28... b5 {[%clk 0:01:13.3]} 29. Bxd6
{[%clk 0:02:06.1]} 29... cxd6 {[%clk 0:01:13.6]} 30. Rbe1 {[%clk 0:02:06.8]}
30... Kh8 {[%clk 0:01:12.4]} 31. Rxe6 {[%clk 0:02:06.3]} 31... Rxe6 {[%clk
0:01:11.9]} 32. Rxe6 {[%clk 0:02:06.1]} 32... Qc7 {[%clk 0:01:11.6]} 33. Rxf6
{[%clk 0:02:04.3]} 33... Bxf6 {[%clk 0:01:04.7]} 34. Qxf6+ {[%clk 0:02:04.1]}
34... Qg7 {[%clk 0:01:05.6]} 35. Qxg7+ {[%clk 0:02:02.9]} 35... Kxg7 {[%clk
0:01:05.6]} 36. Be6 {[%clk 0:02:03.8]} 1-0

[Event "*** SCC Grand Prix: Titled Tuesday Blitz"]
[Site "Chess.com"]
[Date "2020.07.21"]
[Round "2"]
[White "MergenKakabaev"]
[Black "Kezin_Roman"]
[Result "0-1"]
[WhiteElo "2483"]
[BlackElo "2726"]
[TimeControl "180+1"]
[EndTime "10:14:53 PDT"]
[Termination "Kezin_Roman won by resignation"]

1. e4 {[%clk 0:03:00.9]} 1... c5 {[%clk 0:02:59.9]} 2. Nf3 {[%clk 0:03:00.5]}
2... e6 {[%clk 0:02:59.9]} 3. d4 {[%clk 0:03:00.3]} 3... cxd4 {[%clk 0:03:00.8]}
4. Nxd4 {[%clk 0:03:01.2]} 4... Nc6 {[%clk 0:03:01.1]} 5. Nxc6 {[%clk
0:03:00.9]} 5... bxc6 {[%clk 0:03:00.8]} 6. Bd3 {[%clk 0:03:01]} 6... d5 {[%clk
0:03:01.2]} 7. Nd2 {[%clk 0:03:00.4]} 7... Nf6 {[%clk 0:03:01.7]} 8. O-O {[%clk
0:02:59.9]} 8... Be7 {[%clk 0:03:02.1]} 9. b3 {[%clk 0:03:00.1]} 9... O-O {[%clk
0:03:02.3]} 10. Bb2 {[%clk 0:03:00.3]} 10... a5 {[%clk 0:03:02.9]} 11. Qe2
{[%clk 0:02:58.7]} 11... a4 {[%clk 0:03:02.3]} 12. Rab1 {[%clk 0:02:52.3]} 12...
Qa5 {[%clk 0:02:51]} 13. e5 {[%clk 0:02:50]} 13... Nd7 {[%clk 0:02:50.6]} 14. f4
{[%clk 0:02:48.4]} 14... Nc5 {[%clk 0:02:33.4]} 15. f5 {[%clk 0:01:41.5]} 15...
Nxd3 {[%clk 0:02:30.3]} 16. f6 {[%clk 0:01:41.5]} 16... Bc5+ {[%clk 0:02:23.2]}
17. Kh1 {[%clk 0:01:41]} 17... Nxb2 {[%clk 0:02:21.7]} 18. Qg4 {[%clk
0:01:40.3]} 18... g6 {[%clk 0:02:21.3]} 19. Qf4 {[%clk 0:01:32.5]} 19... Re8
{[%clk 0:02:19.4]} 20. Nf3 {[%clk 0:01:17.8]} 20... Qb4 {[%clk 0:02:07.6]} 21.
c4 {[%clk 0:01:14.4]} 21... Nd3 {[%clk 0:02:04]} 22. Qh4 {[%clk 0:01:13.5]}
22... Bf8 {[%clk 0:01:51.5]} 23. Ng5 {[%clk 0:01:12.5]} 23... h6 {[%clk
0:01:48.4]} 24. Nf3 {[%clk 0:01:09.3]} 24... axb3 {[%clk 0:01:44.5]} 25. axb3
{[%clk 0:01:07.4]} 25... Ra2 {[%clk 0:01:43.2]} 0-1